fUST/lending_fUST_20250530
["ID","MTS","AMOUNT","RATE_DAILY","PERIOD"]
[363137515,1748597261557,-1055.37,0.00019178,2]
[363137516,1748597261584,-1055.37,0.00019178,2]
[363137517,1748597261607,-430.0,0.00019178,2]
[363137518,1748597261632,-1055.41881174,0.00019178,2]
[363137519,1748597261655,-151.0,0.00019178,2]
[363137520,1748597261680,-430.0,0.00019178,2]
[363137521,1748597261703,-151.0,0.00019178,2]
[363137522,1748597261727,-151.0,0.00019178,2]
[363137523,1748597261750,-273.712652,0.00019178,2]
[363137524,1748597261774,-430.0,0.00019178,2]
[363137525,1748597261798,-500.0,0.00019178,2]
[363137526,1748597261822,-430.0,0.00019178,2]
[363137527,1748597261847,-7367.39,0.00019178,2]
[363137528,1748597261871,-430.0,0.00019178,2]
[363137529,1748597261895,-2136.1,0.00019178,2]
[363137530,1748597261920,-1161.28,0.00019178,2]
[363137531,1748597261944,-430.0,0.00019178,2]
[363137532,1748597261967,-1502.07,0.00019178,2]
[363137533,1748597261990,-430.67667368,0.00019178,2]
[363137534,1748597262016,-430.0,0.00019178,2]
[363137535,1748597262040,-430.0,0.00019178,2]
[363137536,1748597262064,-430.0,0.00019178,2]
[363137537,1748597262088,-430.0,0.00019178,2]
[363137538,1748597262113,-1266.16,0.00019178,2]
[363137539,1748597262136,-504.30959861,0.00019178,2]
[363137540,1748597262161,-9226.19,0.00019178,2]
[363137541,1748597262186,-1356.28,0.00019178,2]
[363137542,1748597262210,-430.0,0.00019178,2]
[363137543,1748597262237,-4321.44,0.00019178,2]
[363137544,1748597262262,-430.0,0.00019178,2]
[363137545,1748597262289,-723.49,0.00019178,2]
[363137546,1748597262313,-430.0,0.00019178,2]
[363137547,1748597262338,-430.0,0.00019178,2]
[363137548,1748597262364,-430.0,0.00019178,2]
[363137549,1748597262390,-5978.98,0.00019178,2]
[363137550,1748597262414,-679.38,0.00019178,2]
[363137551,1748597262438,-430.0,0.00019178,2]
[363137552,1748597262462,-532.51255465,0.00019178,2]
[363137553,1748597262488,-625.2,0.00019178,2]
[363137554,1748597262511,-430.0,0.00019178,2]
[363137555,1748597262535,-430.0,0.00019178,2]
[363137556,1748597262559,-431.91,0.00019178,2]
[363137557,1748597262582,-430.0,0.00019178,2]
[363137558,1748597262606,-430.0,0.00019178,2]
[363137559,1748597262630,-400.0,0.00019178,2]
[363137560,1748597262653,-430.0,0.00019178,2]
[363137561,1748597262677,-299.773927,0.00019178,2]
[363137562,1748597262701,-430.0,0.00019178,2]
[363137563,1748597262725,-299.773927,0.00019178,2]
[363137564,1748597262749,-430.0,0.00019178,2]
[363137565,1748597262774,-299.773927,0.00019178,2]
[363137566,1748597262797,-299.773927,0.00019178,2]
[363137567,1748597262821,-430.0,0.00019178,2]
[363137568,1748597262845,-299.773927,0.00019178,2]
[363137569,1748597262868,-299.773927,0.00019178,2]
[363137570,1748597262891,-299.773927,0.00019178,2]
[363137571,1748597262913,-299.773927,0.00019178,2]
[363137572,1748597262936,-299.773927,0.00019178,2]
[363137573,1748597262957,-433.1184494,0.00019178,2]
[363137574,1748597262980,-430.0,0.00019178,2]
[363137575,1748597263002,-430.0,0.00019178,2]
[363137576,1748597263027,-1914.18,0.00019178,2]
[363137577,1748597263191,-299.773927,0.00019178,2]
[363137578,1748597263215,-226.59631636,0.00019178,2]
[363137579,1748597263240,-299.773927,0.00019178,2]
[363137580,1748597263265,-430.0,0.00019178,2]
[363137581,1748597263293,-3495.65,0.00019178,2]
[363137582,1748597263318,-299.773927,0.00019178,2]
[363137583,1748597263345,-3459.98,0.00019178,2]
[363137584,1748597263374,-299.773927,0.00019178,2]
[363137585,1748597263398,-1059.38,0.00019178,2]
[363137586,1748597263423,-299.773927,0.00019178,2]
[363137587,1748597263446,-150.90627851,0.00019178,2]
[363137588,1748597263470,-299.773927,0.00019178,2]
[363137589,1748597263493,-430.0,0.00019178,2]
[363137590,1748597263518,-299.773927,0.00019178,2]
[363137591,1748597263540,-430.0,0.00019178,2]
[363137592,1748597263566,-2485.01,0.00019178,2]
[363137593,1748597263590,-299.773927,0.00019178,2]
[363137594,1748597263614,-299.773921,0.00019178,2]
[363137595,1748597263640,-430.0,0.00019178,2]
[363137596,1748597263664,-466.72587475,0.00019178,2]
[363137597,1748597263688,-1651.88,0.00019178,2]
[363137598,1748597263712,-430.0,0.00019178,2]
[363137599,1748597263736,-430.0,0.00019178,2]
[363137600,1748597263759,-430.0,0.00019178,2]
[363137601,1748597263784,-966.71,0.00019178,2]
[363137602,1748597263808,-151.0,0.00019178,2]
[363137603,1748597263831,-151.0,0.00019178,2]
[363137604,1748597263856,-151.0,0.00019178,2]
[363137605,1748597263882,-151.0,0.00019178,2]
[363137606,1748597263906,-430.0,0.00019178,2]
[363137607,1748597263931,-430.0,0.00019178,2]
[363137608,1748597263956,-430.0,0.00019178,2]
[363137609,1748597263980,-151.0,0.00019178,2]
[363137610,1748597264006,-151.0,0.00019178,2]
[363137611,1748597264031,-151.0,0.00019178,2]
[363137612,1748597264055,-151.0,0.00019178,2]
[363137613,1748597264079,-430.0,0.00019178,2]
[363137614,1748597264104,-151.0,0.00019178,2]
[363137615,1748597264130,-151.0,0.00019178,2]
[363137616,1748597264153,-151.0,0.00019178,2]
[363137617,1748597264179,-167.823796,0.00019178,2]
[363137618,1748597264205,-430.0,0.00019178,2]
[363137619,1748597264243,-476.19574312,0.00019178,2]
[363137620,1748597264289,-430.0,0.00019178,2]
[363137621,1748597264337,-2730.01,0.00019178,2]
[363137622,1748597264383,-430.0,0.00019178,2]
[363137623,1748597264422,-430.0,0.00019178,2]
[363137624,1748597264462,-509.1,0.00019178,2]
[363137625,1748597264508,-5712.73,0.00019178,2]
[363137626,1748597264545,-430.0,0.00019178,2]
[363137627,1748597264582,-430.0,0.00019178,2]
[363137628,1748597264616,-430.0,0.00019178,2]
[363137629,1748597264653,-10569.57,0.00019178,2]
[363137630,1748597264690,-430.0,0.00019178,2]
[363137631,1748597264727,-430.0,0.00019178,2]
[363137632,1748597264764,-430.0,0.00019178,2]
[363137633,1748597264799,-430.0,0.00019178,2]
[363137634,1748597264834,-223.09972044,0.00019178,2]
[363137635,1748597264868,-500.0,0.00019178,2]
[363137636,1748597264903,-430.0,0.00019178,2]
[363137637,1748597264938,-430.0,0.00019178,2]
[363137638,1748597264973,-430.0,0.00019178,2]
[363137639,1748597265008,-536.71112375,0.00019178,2]
[363137640,1748597265044,-430.0,0.00019178,2]
[363137641,1748597265078,-430.0,0.00019178,2]
[363137642,1748597265114,-579.82,0.00019178,2]
[363137643,1748597265151,-430.0,0.00019178,2]
[363137644,1748597265188,-430.0,0.00019178,2]
[363137645,1748597265223,-354.52879825,0.00019178,2]
[363137646,1748597265258,-201.55911752,0.00019178,2]
[363137647,1748597265295,-1041.63,0.00019178,2]
[363137648,1748597265333,-1504.98,0.00019178,2]
[363137649,1748597265370,-2577.66,0.00019178,2]
[363137650,1748597265407,-430.0,0.00019178,2]
[363137651,1748597265444,-430.0,0.00019178,2]
[363137652,1748597265480,-430.0,0.00019178,2]
[363137653,1748597265516,-430.0,0.00019178,2]
[363137654,1748597265551,-430.0,0.00019178,2]
[363137655,1748597265588,-323.87678373,0.00019178,2]
[363137656,1748597265624,-430.0,0.00019178,2]
[363137657,1748597265659,-474.61,0.00019178,2]
[363137658,1748597265693,-430.0,0.00019178,2]
[363137659,1748597265729,-430.0,0.00019178,2]
[363137660,1748597265937,-151.0,0.00019178,2]
[363137661,1748597265980,-151.0,0.00019178,2]
[363137662,1748597266004,-151.0,0.00019178,2]
[363137663,1748597266027,-151.0,0.00019178,2]
[363137664,1748597266050,-151.0,0.00019178,2]
[363137665,1748597266072,-151.0,0.00019178,2]
[363137666,1748597266095,-151.0,0.00019178,2]
[363137667,1748597266118,-151.0,0.00019178,2]
[363137668,1748597266141,-842.17,0.00019178,2]
[363137669,1748597266164,-151.0,0.00019178,2]
[363137670,1748597266187,-819.77,0.00019178,2]
[363137671,1748597266211,-151.0,0.00019178,2]
[363137672,1748597266234,-430.0,0.00019178,2]
[363137673,1748597266257,-151.0,0.00019178,2]
[363137674,1748597266282,-151.0,0.00019178,2]
[363137675,1748597266308,-430.0,0.00019178,2]
[363137676,1748597266331,-151.0,0.00019178,2]
[363137677,1748597266355,-211.285496,0.00019178,2]
[363137678,1748597266379,-151.0,0.00019178,2]
[363137679,1748597266404,-151.0,0.00019178,2]
[363137680,1748597266429,-84.38253039,0.00019178,2]
[363137681,1748597266888,-500.0,0.00019173,2]
[363137682,1748597266911,-1518.47746961,0.00019178,2]
[363137683,1748597266932,-430.0,0.00019178,2]
[363137684,1748597266953,-151.0,0.00019178,2]
[363137685,1748597266977,-151.0,0.00019178,2]
[363137686,1748597267000,-151.0,0.00019178,2]
[363137687,1748597267023,-2541.8,0.00019178,2]
[363137688,1748597267044,-151.0,0.00019178,2]
[363137689,1748597267066,-430.0,0.00019178,2]
[363137690,1748597267087,-151.0,0.00019178,2]
[363137691,1748597267109,-151.0,0.00019178,2]
[363137692,1748597267130,-151.0,0.00019178,2]
[363137693,1748597267151,-151.0,0.00019178,2]
[363137694,1748597267173,-151.0,0.00019178,2]
[363137695,1748597267194,-151.0,0.00019178,2]
[363137696,1748597267215,-151.0,0.00019178,2]
[363137697,1748597267235,-151.0,0.00019178,2]
[363137698,1748597267257,-1154.34,0.00019178,2]
[363137699,1748597267279,-430.0,0.00019178,2]
[363137700,1748597267305,-151.0,0.00019178,2]
[363137701,1748597267327,-151.0,0.00019178,2]
[363137702,1748597267348,-228.004863,0.00019178,2]
[363137703,1748597267370,-151.0,0.00019178,2]
[363137704,1748597267391,-151.0,0.00019178,2]
[363137705,1748597267413,-204.496204,0.00019178,2]
[363137706,1748597267434,-430.0,0.00019178,2]
[363137707,1748597267456,-151.0,0.00019178,2]
[363137708,1748597267478,-430.0,0.00019178,2]
[363137709,1748597267500,-219.891703,0.00019178,2]
[363137710,1748597267522,-500.0,0.00019178,2]
[363137711,1748597267544,-500.0,0.00019178,2]
[363137712,1748597267566,-430.0,0.00019178,2]
[363137713,1748597267587,-500.0,0.00019178,2]
[363137714,1748597267609,-500.0,0.00019178,2]
[363137715,1748597267631,-500.0,0.00019178,2]
[363137716,1748597267652,-500.0,0.00019178,2]
[363137717,1748597267673,-500.0,0.00019178,2]
[363137718,1748597267694,-500.0,0.00019178,2]
[363137719,1748597267715,-530.42828225,0.00019178,2]
[363137720,1748597267737,-430.0,0.00019178,2]
[363137721,1748597267758,-430.0,0.00019178,2]
[363137722,1748597267779,-430.0,0.00019178,2]
[363137723,1748597267800,-430.0,0.00019178,2]
[363137724,1748597267824,-4897.98,0.00019178,2]
[363137725,1748597267845,-430.0,0.00019178,2]
[363137726,1748597267868,-648.24,0.00019178,2]
[363137727,1748597267890,-430.0,0.00019178,2]
[363137728,1748597267912,-350.0,0.00019178,2]
[363137729,1748597267933,-430.0,0.00019178,2]
[363137730,1748597267956,-6400.38,0.00019178,2]
[363137731,1748597267977,-430.0,0.00019178,2]
[363137732,1748597268000,-430.0,0.00019178,2]
[363137733,1748597268022,-430.0,0.00019178,2]
[363137734,1748597268045,-430.0,0.00019178,2]
[363137735,1748597268068,-430.0,0.00019178,2]
[363137736,1748597268090,-283.95651382,0.00019178,2]
[363137737,1748597268112,-430.0,0.00019178,2]
[363137738,1748597268136,-2816.75,0.00019178,2]
[363137739,1748597268159,-430.0,0.00019178,2]
[363137740,1748597268183,-430.0,0.00019178,2]
[363137741,1748597268207,-430.0,0.00019178,2]
[363137742,1748597268229,-430.0,0.00019178,2]
[363137743,1748597268255,-430.0,0.00019178,2]
[363137744,1748597268439,-1496.05,0.00019178,2]
[363137745,1748597268466,-642.7,0.00019178,2]
[363137746,1748597268489,-400.0,0.00019178,2]
[363137747,1748597268512,-779.81,0.00019178,2]
[363137748,1748597268535,-430.0,0.00019178,2]
[363137749,1748597268557,-430.0,0.00019178,2]
[363137750,1748597268581,-500.0,0.00019178,2]
[363137751,1748597268605,-500.0,0.00019178,2]
[363137752,1748597268630,-500.0,0.00019178,2]
[363137753,1748597268655,-626.71472805,0.00019178,2]
[363137754,1748597268680,-500.0,0.00019178,2]
[363137755,1748597268705,-500.0,0.00019178,2]
[363137756,1748597268729,-500.0,0.00019178,2]
[363137757,1748597268754,-500.0,0.00019178,2]
[363137758,1748597268778,-500.0,0.00019178,2]
[363137759,1748597268802,-500.0,0.00019178,2]
[363137760,1748597268826,-500.0,0.00019178,2]
[363137761,1748597268851,-500.0,0.00019178,2]
[363137762,1748597268877,-2633.33,0.00019178,2]
[363137763,1748597268900,-430.0,0.00019178,2]
[363137764,1748597268925,-430.0,0.00019178,2]
[363137765,1748597268948,-1054.12,0.00019178,2]
[363137766,1748597268971,-430.0,0.00019178,2]
[363137767,1748597268992,-222.42062278,0.00019178,2]
[363137768,1748597269014,-5583.27,0.00019178,2]
[363137769,1748597269039,-467.24861879,0.00019178,2]
[363137770,1748597269061,-370.96826001,0.00019178,2]
[363137771,1748597269082,-430.0,0.00019178,2]
[363137772,1748597269103,-430.0,0.00019178,2]
[363137773,1748597269127,-1885.16,0.00019178,2]
[363137774,1748597269148,-151.0,0.00019178,2]
[363137775,1748597269169,-351.59836862,0.00019178,2]
[363137776,1748597269190,-430.0,0.00019178,2]
[363137777,1748597269212,-151.0,0.00019178,2]
[363137778,1748597269233,-430.0,0.00019178,2]
[363137779,1748597269255,-300.818778,0.00019178,2]
[363137780,1748597269275,-430.0,0.00019178,2]
[363137781,1748597269299,-430.0,0.00019178,2]
[363137782,1748597269321,-549.84,0.00019178,2]
[363137783,1748597269347,-500.0,0.00019178,2]
[363137784,1748597269373,-500.0,0.00019178,2]
[363137785,1748597269398,-500.0,0.00019178,2]
[363137786,1748597269423,-500.0,0.00019178,2]
[363137787,1748597269450,-500.0,0.00019178,2]
[363137788,1748597269474,-8512.65,0.00019178,2]
[363137789,1748597269497,-430.0,0.00019178,2]
[363137790,1748597269521,-500.0,0.00019178,2]
[363137791,1748597269544,-500.0,0.00019178,2]
[363137792,1748597269568,-551.44916917,0.00019178,2]
[363137793,1748597269590,-830.07,0.00019178,2]
[363137794,1748597269613,-533.42,0.00019178,2]
[363137795,1748597269635,-430.0,0.00019178,2]
[363137796,1748597269656,-430.0,0.00019178,2]
[363137797,1748597269677,-430.0,0.00019178,2]
[363137798,1748597269699,-430.0,0.00019178,2]
[363137799,1748597269719,-430.0,0.00019178,2]
[363137800,1748597269741,-430.0,0.00019178,2]
[363137801,1748597269763,-430.0,0.00019178,2]
[363137802,1748597269784,-430.0,0.00019178,2]
[363137803,1748597269805,-430.0,0.00019178,2]
[363137804,1748597269826,-417.44316136,0.00019178,2]
[363137805,1748597269847,-430.0,0.00019178,2]
[363137806,1748597269870,-151.0,0.00019178,2]
[363137807,1748597269891,-199.778596,0.00019178,2]
[363137808,1748597269912,-637.0,0.000192,2]
[363137809,1748597269932,-600.0,0.000192,2]
[363137810,1748597269955,-156.587,0.00019233,2]
[363137811,1748597269978,-162.380719,0.00019288,2]
[363137812,1748597269999,-40867.90300454,0.00019329,2]
[363137813,1748597270679,500.0,0.00024658,120]
[363137814,1748597270847,-874.920619,0.000191,2]
[363137815,1748597270868,-151.0,0.0001917,2]
[363137816,1748597270891,-500.0,0.00019178,2]
[363137817,1748597270912,-225.14783437,0.00019178,2]
[363137818,1748597270941,-324.85216563,0.00019178,2]
[363137819,1748597270961,-31229.05936272,0.00019329,2]
[363137820,1748597270983,-168.3888056,0.00019343,2]
[363137821,1748597271197,-375.20417287,0.00019352,2]
[363137822,1748597271227,-2139.28050201,0.00019383,2]
[363137823,1748597271249,-174.61919141,0.00019398,2]
[363137824,1748597271270,-206.0,0.000194,2]
[363137825,1748597271294,-156.0,0.000194,2]
[363137826,1748597271312,-600.0,0.000194,2]
[363137827,1748597271332,-160.0,0.00019451,2]
[363137828,1748597271351,-160.0,0.00019451,2]
[363137829,1748597271372,-430.0,0.00019452,2]
[363137830,1748597271392,-430.0,0.00019452,2]
[363137831,1748597271413,-430.0,0.00019452,2]
[363137832,1748597271434,-432.31827173,0.00019452,2]
[363137833,1748597271454,-430.0,0.00019452,2]
[363137834,1748597271475,-430.0,0.00019452,2]
[363137835,1748597271496,-430.0,0.00019452,2]
[363137836,1748597271516,-436.7071302,0.00019452,2]
[363137837,1748597271536,-450.0,0.00019452,2]
[363137838,1748597271557,-430.0,0.00019452,2]
[363137839,1748597271577,-430.0,0.00019452,2]
[363137840,1748597271597,-341.4203839,0.00019452,2]
[363137841,1748597271618,-430.0,0.00019452,2]
[363137842,1748597271638,-430.0,0.00019452,2]
[363137843,1748597271658,-430.0,0.00019452,2]
[363137844,1748597271678,-430.0,0.00019452,2]
[363137845,1748597271698,-436.32290466,0.00019452,2]
[363137846,1748597271719,-430.0,0.00019452,2]
[363137847,1748597271739,-430.0,0.00019452,2]
[363137848,1748597271759,-430.0,0.00019452,2]
[363137849,1748597271779,-430.0,0.00019452,2]
[363137850,1748597271799,-430.0,0.00019452,2]
[363137851,1748597271821,-430.0,0.00019452,2]
[363137852,1748597271844,-430.0,0.00019452,2]
[363137853,1748597271865,-430.0,0.00019452,2]
[363137854,1748597271885,-352.35299928,0.00019452,2]
[363137855,1748597271906,-371.56747396,0.00019452,2]
[363137856,1748597271928,-430.0,0.00019452,2]
[363137857,1748597271949,-430.0,0.00019452,2]
[363137858,1748597271970,-430.0,0.00019452,2]
[363137859,1748597271992,-430.0,0.00019452,2]
[363137860,1748597272012,-203.72963428,0.00019452,2]
[363137861,1748597272034,-430.0,0.00019452,2]
[363137862,1748597272055,-430.0,0.00019452,2]
[363137863,1748597272075,-430.0,0.00019452,2]
[363137864,1748597272095,-430.0,0.00019452,2]
[363137865,1748597272115,-430.0,0.00019452,2]
[363137866,1748597272136,-430.0,0.00019452,2]
[363137867,1748597272158,-430.0,0.00019452,2]
[363137868,1748597272178,-430.0,0.00019452,2]
[363137869,1748597272200,-430.0,0.00019452,2]
[363137870,1748597272222,-430.0,0.00019452,2]
[363137871,1748597272244,-430.0,0.00019452,2]
[363137872,1748597272266,-430.0,0.00019452,2]
[363137873,1748597272290,-430.0,0.00019452,2]
[363137874,1748597272314,-430.0,0.00019452,2]
[363137875,1748597272336,-430.0,0.00019452,2]
[363137876,1748597272359,-403.12846371,0.00019452,2]
[363137877,1748597272381,-430.0,0.00019452,2]
[363137878,1748597272402,-430.0,0.00019452,2]
[363137879,1748597272424,-430.0,0.00019452,2]
[363137880,1748597272446,-430.0,0.00019452,2]
[363137881,1748597272468,-430.0,0.00019452,2]
[363137882,1748597272490,-403.51688909,0.00019452,2]
[363137883,1748597272510,-430.0,0.00019452,2]
[363137884,1748597272531,-430.0,0.00019452,2]
[363137885,1748597272552,-430.0,0.00019452,2]
[363137886,1748597272573,-430.0,0.00019452,2]
[363137887,1748597272594,-373.3488749,0.00019452,2]
[363137888,1748597272615,-403.07429824,0.00019452,2]
[363137889,1748597272637,-877.03,0.00019452,2]
[363137890,1748597272658,-430.0,0.00019452,2]
[363137891,1748597272679,-430.0,0.00019452,2]
[363137892,1748597272700,-279.85956293,0.00019452,2]
[363137893,1748597272721,-430.0,0.00019452,2]
[363137894,1748597272742,-430.0,0.00019452,2]
[363137895,1748597272763,-430.0,0.00019452,2]
[363137896,1748597272785,-430.0,0.00019452,2]
[363137897,1748597272806,-430.0,0.00019452,2]
[363137898,1748597272829,-430.0,0.00019452,2]
[363137899,1748597272862,-430.0,0.00019452,2]
[363137900,1748597272884,-430.0,0.00019452,2]
[363137901,1748597272905,-430.0,0.00019452,2]
[363137902,1748597272927,-496.88,0.00019452,2]
[363137903,1748597272950,-430.0,0.00019452,2]
[363137904,1748597272972,-430.0,0.00019452,2]
[363137905,1748597272994,-430.0,0.00019452,2]
[363137906,1748597273019,-521.03,0.00019452,2]
[363137907,1748597273040,-430.0,0.00019452,2]
[363137908,1748597273062,-188.70873862,0.00019452,2]
[363137909,1748597273084,-430.0,0.00019452,2]
[363137910,1748597273106,-394.0415995,0.00019452,2]
[363137911,1748597273128,-959.58,0.00019452,2]
[363137912,1748597273151,-430.0,0.00019452,2]
[363137913,1748597273173,-430.0,0.00019452,2]
[363137914,1748597273195,-430.0,0.00019452,2]
[363137915,1748597273217,-430.0,0.00019452,2]
[363137916,1748597273239,-430.0,0.00019452,2]
[363137917,1748597273261,-430.0,0.00019452,2]
[363137918,1748597273284,-431.19552518,0.00019452,2]
[363137919,1748597273307,-430.0,0.00019452,2]
[363137920,1748597273331,-430.0,0.00019452,2]
[363137921,1748597273354,-430.0,0.00019452,2]
[363137922,1748597273377,-430.0,0.00019452,2]
[363137923,1748597273400,-430.0,0.00019452,2]
[363137924,1748597273423,-430.0,0.00019452,2]
[363137925,1748597273445,-430.0,0.00019452,2]
[363137926,1748597273468,-622.67,0.00019452,2]
[363137927,1748597273490,-430.0,0.00019452,2]
[363137928,1748597273515,-430.0,0.00019452,2]
[363137929,1748597273538,-430.0,0.00019452,2]
[363137930,1748597273560,-430.0,0.00019452,2]
[363137931,1748597273733,-430.0,0.00019452,2]
[363137932,1748597273756,-472.96396673,0.00019452,2]
[363137933,1748597273779,-430.0,0.00019452,2]
[363137934,1748597273802,-1000.0,0.00019452,2]
[363137935,1748597273824,-450.0,0.00019452,2]
[363137936,1748597273846,-430.0,0.00019452,2]
[363137937,1748597273867,-430.0,0.00019452,2]
[363137938,1748597273888,-430.0,0.00019452,2]
[363137939,1748597273909,-430.0,0.00019452,2]
[363137940,1748597273930,-421.91492152,0.00019452,2]
[363137941,1748597273950,-430.0,0.00019452,2]
[363137942,1748597273971,-430.0,0.00019452,2]
[363137943,1748597273993,-430.0,0.00019452,2]
[363137944,1748597274014,-430.0,0.00019452,2]
[363137945,1748597274035,-189.0272702,0.00019452,2]
[363137946,1748597274056,-430.0,0.00019452,2]
[363137947,1748597274077,-430.0,0.00019452,2]
[363137948,1748597274100,-430.0,0.00019452,2]
[363137949,1748597274122,-430.0,0.00019452,2]
[363137950,1748597274142,-430.0,0.00019452,2]
[363137951,1748597274163,-223.50757008,0.00019452,2]
[363137952,1748597274183,-430.0,0.00019452,2]
[363137953,1748597274204,-430.0,0.00019452,2]
[363137954,1748597274225,-430.0,0.00019452,2]
[363137955,1748597274246,-430.0,0.00019452,2]
[363137956,1748597274268,-430.0,0.00019452,2]
[363137957,1748597274292,-430.0,0.00019452,2]
[363137958,1748597274314,-430.0,0.00019452,2]
[363137959,1748597274337,-504.45,0.00019452,2]
[363137960,1748597274359,-430.0,0.00019452,2]
[363137961,1748597274382,-430.0,0.00019452,2]
[363137962,1748597274404,-588.50688368,0.00019452,2]
[363137963,1748597274427,-430.0,0.00019452,2]
[363137964,1748597274458,-430.0,0.00019452,2]
[363137965,1748597274485,-430.0,0.00019452,2]
[363137966,1748597274509,-430.0,0.00019452,2]
[363137967,1748597274532,-430.0,0.00019452,2]
[363137968,1748597274555,-430.0,0.00019452,2]
[363137969,1748597274579,-430.0,0.00019452,2]
[363137970,1748597274603,-430.0,0.00019452,2]
[363137971,1748597274625,-430.0,0.00019452,2]
[363137972,1748597274651,-430.0,0.00019452,2]
[363137973,1748597274674,-610.0,0.00019452,2]
[363137974,1748597274696,-430.0,0.00019452,2]
[363137975,1748597274719,-155.16922581,0.00019452,2]
[363137976,1748597274741,-430.0,0.00019452,2]
[363137977,1748597274763,-430.0,0.00019452,2]
[363137978,1748597274785,-430.0,0.00019452,2]
[363137979,1748597274808,-442.375809,0.00019452,2]
[363137980,1748597274831,-430.0,0.00019452,2]
[363137981,1748597274853,-430.0,0.00019452,2]
[363137982,1748597274878,-677.51,0.00019452,2]
[363137983,1748597274900,-430.0,0.00019452,2]
[363137984,1748597274924,-430.0,0.00019452,2]
[363137985,1748597274946,-430.0,0.00019452,2]
[363137986,1748597274969,-430.0,0.00019452,2]
[363137987,1748597274992,-430.0,0.00019452,2]
[363137988,1748597275016,-400.0,0.00019452,2]
[363137989,1748597275039,-992.02,0.00019452,2]
[363137990,1748597275061,-430.0,0.00019452,2]
[363137991,1748597275084,-305.08765708,0.00019452,2]
[363137992,1748597275106,-430.0,0.00019452,2]
[363137993,1748597275130,-430.0,0.00019452,2]
[363137994,1748597275159,-430.0,0.00019452,2]
[363137995,1748597275182,-450.06,0.00019452,2]
[363137996,1748597275204,-174.29601501,0.00019452,2]
[363137997,1748597275227,-430.0,0.00019452,2]
[363137998,1748597275250,-430.0,0.00019452,2]
[363137999,1748597275273,-467.02,0.00019452,2]
[363138000,1748597275299,-780.07,0.00019452,2]
[363138001,1748597275323,-430.0,0.00019452,2]
[363138002,1748597275347,-430.0,0.00019452,2]
[363138003,1748597275373,-430.0,0.00019452,2]
[363138004,1748597275396,-430.0,0.00019452,2]
[363138005,1748597275419,-430.0,0.00019452,2]
[363138006,1748597275443,-430.0,0.00019452,2]
[363138007,1748597275466,-335.38695324,0.00019452,2]
[363138008,1748597275490,-430.0,0.00019452,2]
[363138009,1748597275513,-500.0,0.00019452,2]
[363138010,1748597275537,-430.0,0.00019452,2]
[363138011,1748597275559,-430.0,0.00019452,2]
[363138013,1748597275583,-430.0,0.00019452,2]
[363138014,1748597275605,-430.0,0.00019452,2]
[363138015,1748597275631,-430.0,0.00019452,2]